[Event "Late-Titled-Tuesday-Blitz-October-03-2023"]
[Site "Chess.com"]
[Date "2023.10.03"]
[Round "5"]
[White "Firouzja2003"]
[Black "JoakimVonAnd"]
[Result "1-0"]
[WhiteElo "3119"]
[BlackElo "2721"]
[TimeControl "180+1"]
[EndTime "14:54:46 PDT"]
[Termination "Firouzja2003 won by checkmate"]

1. d4 {[%clk 0:02:59]} 1... Nf6 {[%clk 0:02:56.6]} 2. Bg5 {[%clk 0:02:58.3]}
2... d5 {[%clk 0:02:56.4]} 3. e3 {[%clk 0:02:57.6]} 3... Bf5 {[%clk 0:02:55.6]}
4. c4 {[%clk 0:02:51]} 4... c6 {[%clk 0:02:55.3]} 5. Nc3 {[%clk 0:02:45.5]} 5...
e6 {[%clk 0:02:53.7]} 6. cxd5 {[%clk 0:02:41.8]} 6... cxd5 {[%clk 0:02:53.1]} 7.
Nf3 {[%clk 0:02:35.6]} 7... Nc6 {[%clk 0:02:51.6]} 8. Bb5 {[%clk 0:02:24.8]}
8... Bb4 {[%clk 0:02:49.1]} 9. Ne5 {[%clk 0:02:19.3]} 9... Bxc3+ {[%clk
0:02:37.1]} 10. bxc3 {[%clk 0:02:20.2]} 10... O-O {[%clk 0:02:29]} 11. Bxc6
{[%clk 0:02:20.2]} 11... bxc6 {[%clk 0:02:28.5]} 12. g4 {[%clk 0:01:43.5]} 12...
Be4 {[%clk 0:02:20.4]} 13. f3 {[%clk 0:01:43.5]} 13... Bg6 {[%clk 0:02:20.2]}
14. h4 {[%clk 0:01:42.2]} 14... h6 {[%clk 0:02:20.6]} 15. Bxf6 {[%clk
0:01:30.2]} 15... gxf6 {[%clk 0:02:15.9]} 16. Nxg6 {[%clk 0:01:29.4]} 16... fxg6
{[%clk 0:02:16.8]} 17. Qd3 {[%clk 0:01:29]} 17... f5 {[%clk 0:02:10.6]} 18. h5
{[%clk 0:01:05]} 18... Qg5 {[%clk 0:02:01.3]} 19. hxg6 {[%clk 0:00:56.9]} 19...
fxg4 {[%clk 0:01:59.2]} 20. f4 {[%clk 0:00:14.2]} 20... Qf5 {[%clk 0:01:59.4]}
21. Ke2 {[%clk 0:00:12.6]} 21... Kg7 {[%clk 0:01:58.4]} 22. Rab1 {[%clk
0:00:06.4]} 22... Kxg6 {[%clk 0:01:52.7]} 23. Qxf5+ {[%clk 0:00:02.3]} 23...
exf5 {[%clk 0:01:53]} 24. Rb7 {[%clk 0:00:02.3]} 24... h5 {[%clk 0:01:51.2]} 25.
Rc7 {[%clk 0:00:01.9]} 25... Rfc8 {[%clk 0:01:49.1]} 26. Rd7 {[%clk 0:00:02.4]}
26... Rd8 {[%clk 0:01:48.9]} 27. Rc7 {[%clk 0:00:03.2]} 27... Rd6 {[%clk
0:01:49.3]} 28. Kd3 {[%clk 0:00:02.8]} 28... Re6 {[%clk 0:01:49.3]} 29. Kd2
{[%clk 0:00:01.9]} 29... a5 {[%clk 0:01:49.5]} 30. Rb7 {[%clk 0:00:01.7]} 30...
Rae8 {[%clk 0:01:49.5]} 31. Rc7 {[%clk 0:00:02.3]} 31... a4 {[%clk 0:01:47.3]}
32. Kc2 {[%clk 0:00:01.2]} 32... R8e7 {[%clk 0:01:46.6]} 33. Rc8 {[%clk
0:00:01.8]} 33... Rb7 {[%clk 0:01:45.2]} 34. Rg8+ {[%clk 0:00:01.6]} 34... Rg7
{[%clk 0:01:41.5]} 35. Rh8 {[%clk 0:00:01.7]} 35... Rh7 {[%clk 0:01:39.5]} 36.
Rxh7 {[%clk 0:00:01.7]} 36... Kxh7 {[%clk 0:01:39.9]} 37. Rxh5+ {[%clk
0:00:02.6]} 37... Kg6 {[%clk 0:01:40.5]} 38. Rg5+ {[%clk 0:00:03]} 38... Kf6
{[%clk 0:01:41.1]} 39. Kd3 {[%clk 0:00:03.6]} 39... a3 {[%clk 0:01:40.3]} 40.
Rh5 {[%clk 0:00:02.8]} 40... Re7 {[%clk 0:01:39.9]} 41. Rh6+ {[%clk 0:00:03]}
41... Kg7 {[%clk 0:01:39.4]} 42. Rxc6 {[%clk 0:00:03.4]} 42... Rb7 {[%clk
0:01:37.7]} 43. c4 {[%clk 0:00:03.3]} 43... dxc4+ {[%clk 0:01:27.6]} 44. Rxc4
{[%clk 0:00:03.7]} 44... Rb2 {[%clk 0:01:27.9]} 45. d5 {[%clk 0:00:04.2]} 45...
Rxa2 {[%clk 0:01:21.8]} 46. e4 {[%clk 0:00:02.2]} 46... g3 {[%clk 0:01:10.8]}
47. Rc7+ {[%clk 0:00:01.9]} 47... Kg6 {[%clk 0:01:09]} 48. Rc6+ {[%clk 0:00:02]}
48... Kf7 {[%clk 0:01:08.3]} 49. e5 {[%clk 0:00:02.5]} 49... g2 {[%clk
0:01:08.2]} 50. Rc7+ {[%clk 0:00:03.1]} 50... Kg6 {[%clk 0:01:07]} 51. Rc6+
{[%clk 0:00:03.2]} 51... Kh5 {[%clk 0:01:06.1]} 52. Rc1 {[%clk 0:00:03.2]} 52...
Rf2 {[%clk 0:01:04.9]} 53. Rg1 {[%clk 0:00:03.9]} 53... a2 {[%clk 0:01:04]} 54.
e6 {[%clk 0:00:04.7]} 54... Rf1 {[%clk 0:01:03.7]} 55. e7 {[%clk 0:00:03.7]}
55... a1=Q {[%clk 0:01:00.1]} 56. e8=Q+ {[%clk 0:00:04.1]} 56... Kh4 {[%clk
0:01:00.7]} 57. Qe7+ {[%clk 0:00:03.3]} 57... Kh3 {[%clk 0:00:59.7]} 58. Qh7+
{[%clk 0:00:03.8]} 58... Kg3 {[%clk 0:00:59.8]} 59. Qg6+ {[%clk 0:00:04.4]}
59... Kxf4 {[%clk 0:00:51.3]} 60. Qh6+ {[%clk 0:00:05.2]} 60... Kg3 {[%clk
0:00:44.8]} 61. Qg5+ {[%clk 0:00:05.4]} 61... Kh3 {[%clk 0:00:35.3]} 62. Qxg2+
{[%clk 0:00:06.2]} 62... Kh4 {[%clk 0:00:35.9]} 63. Qh1# {[%clk 0:00:06.2]} 1-0

[Event "Late-Titled-Tuesday-Blitz-October-03-2023"]
[Site "Chess.com"]
[Date "2023.10.03"]
[Round "5"]
[White "Triumphmate"]
[Black "Hirna2005"]
[Result "1-0"]
[WhiteElo "2500"]
[BlackElo "2297"]
[TimeControl "180+1"]
[EndTime "14:54:56 PDT"]
[Termination "Triumphmate won on time"]

1. e4 {[%clk 0:03:00.9]} 1... g6 {[%clk 0:03:00.9]} 2. d4 {[%clk 0:03:00.9]}
2... Bg7 {[%clk 0:03:01.5]} 3. Nc3 {[%clk 0:03:01.8]} 3... d6 {[%clk 0:03:02]}
4. Be3 {[%clk 0:03:02.7]} 4... a6 {[%clk 0:03:02.1]} 5. Qd2 {[%clk 0:03:03.6]}
5... b5 {[%clk 0:03:02]} 6. O-O-O {[%clk 0:03:04.5]} 6... Bb7 {[%clk 0:03:01.7]}
7. f3 {[%clk 0:03:04.8]} 7... Nd7 {[%clk 0:03:01.8]} 8. h4 {[%clk 0:03:04.4]}
8... h5 {[%clk 0:03:00.9]} 9. Nh3 {[%clk 0:03:04.2]} 9... Rc8 {[%clk 0:03:00.8]}
10. Ng5 {[%clk 0:03:04.3]} 10... c5 {[%clk 0:03:00.6]} 11. Kb1 {[%clk
0:03:01.9]} 11... c4 {[%clk 0:02:45.9]} 12. a3 {[%clk 0:02:55.6]} 12... Ngf6
{[%clk 0:02:41.9]} 13. e5 {[%clk 0:02:41.5]} 13... Nd5 {[%clk 0:02:26.2]} 14. e6
{[%clk 0:02:38.8]} 14... fxe6 {[%clk 0:01:49.8]} 15. Nxe6 {[%clk 0:02:39.7]}
15... Qa5 {[%clk 0:01:46.5]} 16. Nxd5 {[%clk 0:02:30.4]} 16... Qxd2 {[%clk
0:01:45.6]} 17. Ndc7+ {[%clk 0:02:26.2]} 17... Rxc7 {[%clk 0:01:45.8]} 18. Nxc7+
{[%clk 0:02:26.3]} 18... Kf7 {[%clk 0:01:43.1]} 19. Rxd2 {[%clk 0:02:25.5]}
19... Rc8 {[%clk 0:01:42.8]} 20. Ne6 {[%clk 0:02:18.7]} 20... Kxe6 {[%clk
0:01:41.8]} 21. g3 {[%clk 0:02:19.6]} 21... Kf7 {[%clk 0:01:40.5]} 22. Bh3
{[%clk 0:02:17.6]} 22... Rc7 {[%clk 0:01:37.5]} 23. Re1 {[%clk 0:02:14.3]} 23...
Nf6 {[%clk 0:01:35.3]} 24. Bg5 {[%clk 0:02:13.2]} 24... Bxf3 {[%clk 0:01:31.9]}
25. Rf2 {[%clk 0:02:11.5]} 25... Bd5 {[%clk 0:01:31.4]} 26. c3 {[%clk
0:02:09.1]} 26... Kg8 {[%clk 0:01:23.9]} 27. Be6+ {[%clk 0:02:07.9]} 27... Bxe6
{[%clk 0:01:22.2]} 28. Rxe6 {[%clk 0:02:08.8]} 28... Kf7 {[%clk 0:01:19.1]} 29.
Rfe2 {[%clk 0:02:06.6]} 29... Nd5 {[%clk 0:01:12.9]} 30. Kc2 {[%clk 0:02:03.7]}
30... Bf8 {[%clk 0:01:03.8]} 31. R6e4 {[%clk 0:02:02.9]} 31... a5 {[%clk
0:00:56.8]} 32. Bd2 {[%clk 0:02:00.5]} 32... Bg7 {[%clk 0:00:52.4]} 33. Re1
{[%clk 0:02:00.8]} 33... Bf6 {[%clk 0:00:51.2]} 34. g4 {[%clk 0:02:00.1]} 34...
hxg4 {[%clk 0:00:48.6]} 35. Rxg4 {[%clk 0:02:01]} 35... Rc8 {[%clk 0:00:38.7]}
36. Reg1 {[%clk 0:02:00.8]} 36... Rh8 {[%clk 0:00:34.3]} 37. Bg5 {[%clk
0:01:57.6]} 37... Bxg5 {[%clk 0:00:31.7]} 38. Rxg5 {[%clk 0:01:55.8]} 38... Nf4
{[%clk 0:00:22.4]} 39. Rxb5 {[%clk 0:01:50.3]} 39... Rxh4 {[%clk 0:00:21.7]} 40.
Rxa5 {[%clk 0:01:50.4]} 40... Rh2+ {[%clk 0:00:20.8]} 41. Kb1 {[%clk 0:01:50.4]}
41... d5 {[%clk 0:00:21]} 42. Rb5 {[%clk 0:01:49.7]} 42... Kf6 {[%clk
0:00:19.9]} 43. a4 {[%clk 0:01:50]} 43... g5 {[%clk 0:00:15.3]} 44. a5 {[%clk
0:01:50.1]} 44... Rh8 {[%clk 0:00:15.1]} 45. Rb6+ {[%clk 0:01:49.3]} 45... e6
{[%clk 0:00:15.2]} 46. Re1 {[%clk 0:01:49.6]} 46... Ra8 {[%clk 0:00:14.9]} 47.
a6 {[%clk 0:01:49.9]} 47... g4 {[%clk 0:00:13.9]} 48. Rh1 {[%clk 0:01:47.4]}
48... g3 {[%clk 0:00:13.5]} 49. Rg1 {[%clk 0:01:46.1]} 49... g2 {[%clk
0:00:13.2]} 50. Kc2 {[%clk 0:01:32]} 50... Kf5 {[%clk 0:00:13.5]} 51. Kd2 {[%clk
0:01:32.5]} 51... Ke4 {[%clk 0:00:13.1]} 52. Ra1 {[%clk 0:00:54.2]} 52... Kf3
{[%clk 0:00:12]} 53. a7 {[%clk 0:00:54.7]} 53... Ne2 {[%clk 0:00:09.2]} 54. Rxe6
{[%clk 0:00:29.8]} 54... Rxa7 {[%clk 0:00:07.9]} 55. Rxa7 {[%clk 0:00:21.9]}
55... g1=Q {[%clk 0:00:06.2]} 56. Rf6+ {[%clk 0:00:16.9]} 56... Nf4 {[%clk
0:00:05.6]} 57. Rxf4+ {[%clk 0:00:17.3]} 57... Kxf4 {[%clk 0:00:05.1]} 58. Rf7+
{[%clk 0:00:17.7]} 58... Ke4 {[%clk 0:00:05.5]} 59. Re7+ {[%clk 0:00:18.1]}
59... Kf5 {[%clk 0:00:05.9]} 60. Re5+ {[%clk 0:00:18.1]} 60... Kf4 {[%clk
0:00:05.7]} 61. Re2 {[%clk 0:00:18.8]} 61... Qg5 {[%clk 0:00:04.2]} 62. Kc2
{[%clk 0:00:18.8]} 62... Kf3 {[%clk 0:00:04.1]} 63. Re5 {[%clk 0:00:19.3]} 63...
Qg6+ {[%clk 0:00:03.6]} 64. Kc1 {[%clk 0:00:19]} 64... Qh6+ {[%clk 0:00:02.4]}
65. Kb1 {[%clk 0:00:19]} 65... Qh1+ {[%clk 0:00:01.5]} 66. Ka2 {[%clk
0:00:19.9]} 1-0

[Event "Late-Titled-Tuesday-Blitz-October-03-2023"]
[Site "Chess.com"]
[Date "2023.10.03"]
[Round "5"]
[White "Abund"]
[Black "Joshukid"]
[Result "1-0"]
[WhiteElo "2785"]
[BlackElo "2566"]
[TimeControl "180+1"]
[EndTime "14:55:03 PDT"]
[Termination "Abund won on time"]

1. c4 {[%clk 0:03:00.9]} 1... e6 {[%clk 0:02:56.9]} 2. g3 {[%clk 0:03:01]} 2...
d5 {[%clk 0:02:57.4]} 3. Bg2 {[%clk 0:02:59.1]} 3... Nf6 {[%clk 0:02:57.5]} 4.
Nf3 {[%clk 0:02:56.8]} 4... Be7 {[%clk 0:02:56.6]} 5. O-O {[%clk 0:02:57.2]}
5... O-O {[%clk 0:02:56.6]} 6. b3 {[%clk 0:02:58]} 6... b6 {[%clk 0:02:51.3]} 7.
Bb2 {[%clk 0:02:56.5]} 7... Bb7 {[%clk 0:02:50.8]} 8. d3 {[%clk 0:02:47.7]} 8...
Nbd7 {[%clk 0:02:50.2]} 9. Nbd2 {[%clk 0:02:47.4]} 9... c5 {[%clk 0:02:46.3]}
10. e3 {[%clk 0:02:46.1]} 10... Qc7 {[%clk 0:02:21.3]} 11. Rc1 {[%clk 0:02:44]}
11... Rac8 {[%clk 0:02:19.9]} 12. Rc2 {[%clk 0:02:43.1]} 12... Rfd8 {[%clk
0:02:17.6]} 13. Qa1 {[%clk 0:02:42.9]} 13... Qb8 {[%clk 0:02:18]} 14. a3 {[%clk
0:02:34.3]} 14... Qa8 {[%clk 0:02:10]} 15. Rfc1 {[%clk 0:02:28.5]} 15... a6
{[%clk 0:02:07.1]} 16. h3 {[%clk 0:02:14.5]} 16... b5 {[%clk 0:02:00.2]} 17.
cxd5 {[%clk 0:02:00.5]} 17... Bxd5 {[%clk 0:01:56.6]} 18. a4 {[%clk 0:02:00.3]}
18... Nb6 {[%clk 0:01:44.3]} 19. d4 {[%clk 0:01:29.1]} 19... cxd4 {[%clk
0:01:34.4]} 20. Bxd4 {[%clk 0:01:28.3]} 20... Rxc2 {[%clk 0:01:29.2]} 21. Rxc2
{[%clk 0:01:28.6]} 21... Rc8 {[%clk 0:01:29.5]} 22. Qc1 {[%clk 0:01:20]} 22...
Rxc2 {[%clk 0:01:28.2]} 23. Qxc2 {[%clk 0:01:20.9]} 23... Nbd7 {[%clk
0:01:22.8]} 24. Ne1 {[%clk 0:01:11.2]} 24... bxa4 {[%clk 0:01:18.6]} 25. bxa4
{[%clk 0:01:10.8]} 25... Bxg2 {[%clk 0:01:18.4]} 26. Nxg2 {[%clk 0:01:10.7]}
26... Nd5 {[%clk 0:01:18.7]} 27. Nb3 {[%clk 0:01:03.4]} 27... h6 {[%clk
0:01:14.9]} 28. Na5 {[%clk 0:01:02.9]} 28... Nb4 {[%clk 0:00:59]} 29. Qc3 {[%clk
0:00:51.9]} 29... Nd5 {[%clk 0:00:55]} 30. Qc4 {[%clk 0:00:48.6]} 30... N7f6
{[%clk 0:00:42.7]} 31. Nc6 {[%clk 0:00:46.6]} 31... Bf8 {[%clk 0:00:43.3]} 32.
Nf4 {[%clk 0:00:35.4]} 32... Nxf4 {[%clk 0:00:41.5]} 33. exf4 {[%clk 0:00:35.9]}
33... Nd5 {[%clk 0:00:40.3]} 34. Ne5 {[%clk 0:00:29.1]} 34... Qb7 {[%clk
0:00:37.3]} 35. Qc2 {[%clk 0:00:24.5]} 35... Qb4 {[%clk 0:00:33.8]} 36. Bb2
{[%clk 0:00:21.4]} 36... Bc5 {[%clk 0:00:23]} 37. Nd3 {[%clk 0:00:19]} 37... Qe4
{[%clk 0:00:18.1]} 38. Qxc5 {[%clk 0:00:11.5]} 38... Qxd3 {[%clk 0:00:18.6]} 39.
Qd4 {[%clk 0:00:11.4]} 39... Qxd4 {[%clk 0:00:12.9]} 40. Bxd4 {[%clk 0:00:12.3]}
40... f5 {[%clk 0:00:11.7]} 41. Kf1 {[%clk 0:00:12.3]} 41... Kf7 {[%clk
0:00:09.7]} 42. Ke2 {[%clk 0:00:12.5]} 42... g6 {[%clk 0:00:09.3]} 43. Kd3
{[%clk 0:00:12.8]} 43... Ke7 {[%clk 0:00:09.6]} 44. Kc4 {[%clk 0:00:13.3]} 44...
Kd6 {[%clk 0:00:10.2]} 45. Bb2 {[%clk 0:00:08.8]} 45... Kc6 {[%clk 0:00:09.3]}
46. Ba3 {[%clk 0:00:08.3]} 46... Nb6+ {[%clk 0:00:07.5]} 47. Kb3 {[%clk
0:00:06.4]} 47... Kd5 {[%clk 0:00:07.6]} 48. Bb2 {[%clk 0:00:06.8]} 48... Nc4
{[%clk 0:00:07.7]} 49. Bc3 {[%clk 0:00:06.5]} 49... Nd6 {[%clk 0:00:02.3]} 50.
f3 {[%clk 0:00:03.8]} 50... Nb7 {[%clk 0:00:02.3]} 51. Kb4 {[%clk 0:00:03.9]}
51... Nc5 {[%clk 0:00:03.2]} 52. Bg7 {[%clk 0:00:03.1]} 52... h5 {[%clk
0:00:02.6]} 53. Bf8 {[%clk 0:00:03.5]} 53... Nd3+ {[%clk 0:00:02.7]} 54. Ka5
{[%clk 0:00:03.8]} 54... Ne1 {[%clk 0:00:03.1]} 55. Kxa6 {[%clk 0:00:03.6]}
55... Kc6 {[%clk 0:00:03.8]} 56. a5 {[%clk 0:00:01.5]} 56... Nxf3 {[%clk
0:00:03.6]} 57. h4 {[%clk 0:00:02.1]} 57... Nd4 {[%clk 0:00:03.6]} 58. Ka7
{[%clk 0:00:02.3]} 58... Kc7 {[%clk 0:00:02.9]} 59. Bc5 {[%clk 0:00:02]} 59...
Ne2 {[%clk 0:00:02]} 60. Bb6+ {[%clk 0:00:01.7]} 60... Kc8 {[%clk 0:00:01.9]}
61. Bf2 {[%clk 0:00:02.6]} 61... Nc3 {[%clk 0:00:01.8]} 62. Kb6 {[%clk
0:00:02.9]} 62... Kb8 {[%clk 0:00:01.8]} 63. a6 {[%clk 0:00:03.1]} 63... Ka8
{[%clk 0:00:02.3]} 64. Kc6 {[%clk 0:00:03.4]} 1-0

[Event "Late-Titled-Tuesday-Blitz-October-03-2023"]
[Site "Chess.com"]
[Date "2023.10.03"]
[Round "5"]
[White "Defenstrator"]
[Black "CraiggoryC"]
[Result "1/2-1/2"]
[WhiteElo "2429"]
[BlackElo "2282"]
[TimeControl "180+1"]
[EndTime "14:55:04 PDT"]
[Termination "Game drawn by repetition"]

1. Nh3 {[%clk 0:03:00.5]} 1... Nf6 {[%clk 0:02:58.2]} 2. Rg1 {[%clk 0:02:55.8]}
2... d5 {[%clk 0:02:57.8]} 3. e3 {[%clk 0:02:50.4]} 3... e5 {[%clk 0:02:57.7]}
4. g4 {[%clk 0:02:51]} 4... Nc6 {[%clk 0:02:53.9]} 5. g5 {[%clk 0:02:47]} 5...
Ne4 {[%clk 0:02:53.9]} 6. d3 {[%clk 0:02:33.6]} 6... Bxh3 {[%clk 0:02:53.3]} 7.
dxe4 {[%clk 0:02:20.7]} 7... Bxf1 {[%clk 0:02:53.2]} 8. exd5 {[%clk 0:02:14.4]}
8... Bb5 {[%clk 0:02:38]} 9. a4 {[%clk 0:01:51]} 9... Ba6 {[%clk 0:01:59.3]} 10.
dxc6 {[%clk 0:01:50]} 10... Qxd1+ {[%clk 0:02:00.2]} 11. Kxd1 {[%clk 0:01:49.6]}
11... O-O-O+ {[%clk 0:01:59.9]} 12. Bd2 {[%clk 0:01:36.7]} 12... bxc6 {[%clk
0:02:00.1]} 13. Nc3 {[%clk 0:01:21.2]} 13... Bb4 {[%clk 0:01:48.1]} 14. Ke1
{[%clk 0:01:20.6]} 14... Rd7 {[%clk 0:01:39.2]} 15. Rg4 {[%clk 0:01:09.3]} 15...
Rhd8 {[%clk 0:01:12.4]} 16. Rxb4 {[%clk 0:00:47.9]} 16... Rxd2 {[%clk
0:01:11.1]} 17. Rd1 {[%clk 0:00:46.2]} 17... Rxc2 {[%clk 0:00:44.3]} 18. Rxd8+
{[%clk 0:00:45.8]} 18... Kxd8 {[%clk 0:00:44.6]} 19. Rh4 {[%clk 0:00:38.5]}
19... Bd3 {[%clk 0:00:25]} 20. e4 {[%clk 0:00:32]} 20... Rxb2 {[%clk 0:00:21.8]}
21. Rxh7 {[%clk 0:00:29.3]} 21... Rc2 {[%clk 0:00:18.9]} 22. Rxg7 {[%clk
0:00:11.5]} 22... Rxc3 {[%clk 0:00:17.6]} 23. Kd2 {[%clk 0:00:11.9]} 23... Ra3
{[%clk 0:00:17.1]} 24. h4 {[%clk 0:00:06.4]} 24... Bxe4 {[%clk 0:00:15.8]} 25.
h5 {[%clk 0:00:05.5]} 25... Rh3 {[%clk 0:00:14.6]} 26. h6 {[%clk 0:00:05.5]}
26... Bg6 {[%clk 0:00:12.5]} 27. Rg8+ {[%clk 0:00:03.6]} 27... Kd7 {[%clk
0:00:12]} 28. Ra8 {[%clk 0:00:04.5]} 28... Rh5 {[%clk 0:00:09.1]} 29. Rxa7
{[%clk 0:00:04.8]} 29... Rxg5 {[%clk 0:00:09.4]} 30. Ra8 {[%clk 0:00:04.2]}
30... Rg4 {[%clk 0:00:09.2]} 31. a5 {[%clk 0:00:04.6]} 31... Ra4 {[%clk
0:00:08.6]} 32. a6 {[%clk 0:00:04.6]} 32... c5 {[%clk 0:00:08.6]} 33. f3 {[%clk
0:00:03.9]} 33... c4 {[%clk 0:00:08.3]} 34. a7 {[%clk 0:00:03.4]} 34... Kc6
{[%clk 0:00:08.1]} 35. Rh8 {[%clk 0:00:02.3]} 35... Rxa7 {[%clk 0:00:07.9]} 36.
h7 {[%clk 0:00:03.2]} 36... Bxh7 {[%clk 0:00:08]} 37. Rxh7 {[%clk 0:00:04.1]}
37... Ra3 {[%clk 0:00:08.3]} 38. Rxf7 {[%clk 0:00:04.6]} 38... c3+ {[%clk
0:00:07.9]} 39. Kc2 {[%clk 0:00:05.1]} 39... Kd6 {[%clk 0:00:07.7]} 40. Rf6+
{[%clk 0:00:04.5]} 40... Kd5 {[%clk 0:00:08]} 41. Rf8 {[%clk 0:00:04.9]} 41...
c5 {[%clk 0:00:08.2]} 42. Rd8+ {[%clk 0:00:05.1]} 42... Kc4 {[%clk 0:00:08.8]}
43. Re8 {[%clk 0:00:05.1]} 43... Ra2+ {[%clk 0:00:09.2]} 44. Kc1 {[%clk
0:00:05.2]} 44... Kb3 {[%clk 0:00:08.5]} 45. Rb8+ {[%clk 0:00:04.2]} 45... Kc4
{[%clk 0:00:08.7]} 46. Re8 {[%clk 0:00:04.1]} 46... Kd3 {[%clk 0:00:08.1]} 47.
Rd8+ {[%clk 0:00:03.5]} 47... Ke3 {[%clk 0:00:08.5]} 48. Rd5 {[%clk 0:00:03.7]}
48... Kxf3 {[%clk 0:00:07.2]} 49. Rxe5 {[%clk 0:00:04.6]} 49... c4 {[%clk
0:00:06.9]} 50. Re8 {[%clk 0:00:04]} 50... Kf4 {[%clk 0:00:06]} 51. Re7 {[%clk
0:00:04.6]} 51... Kf5 {[%clk 0:00:06]} 52. Rc7 {[%clk 0:00:04.4]} 52... Ra4
{[%clk 0:00:05.5]} 53. Kc2 {[%clk 0:00:04.7]} 53... Ke4 {[%clk 0:00:05.8]} 54.
Kxc3 {[%clk 0:00:05.4]} 54... Kd5 {[%clk 0:00:06]} 55. Rd7+ {[%clk 0:00:05.6]}
55... Kc5 {[%clk 0:00:06.2]} 56. Rd8 {[%clk 0:00:05.3]} 56... Ra3+ {[%clk
0:00:05.8]} 57. Kc2 {[%clk 0:00:06.2]} 57... Kb4 {[%clk 0:00:06.2]} 58. Rb8+
{[%clk 0:00:06.7]} 58... Kc5 {[%clk 0:00:06.6]} 59. Rc8+ {[%clk 0:00:07.3]}
59... Kd4 {[%clk 0:00:06.8]} 60. Rd8+ {[%clk 0:00:07.8]} 60... Kc5 {[%clk
0:00:07.3]} 61. Rc8+ {[%clk 0:00:08.3]} 61... Kb4 {[%clk 0:00:07.7]} 62. Rb8+
{[%clk 0:00:08.7]} 62... Kc5 {[%clk 0:00:08.1]} 63. Rc8+ {[%clk 0:00:09.1]}
1/2-1/2

[Event "Late-Titled-Tuesday-Blitz-October-03-2023"]
[Site "Chess.com"]
[Date "2023.10.03"]
[Round "5"]
[White "Deeper44"]
[Black "Garmendiarov"]
[Result "0-1"]
[WhiteElo "2550"]
[BlackElo "2320"]
[TimeControl "180+1"]
[EndTime "14:55:07 PDT"]
[Termination "Garmendiarov won by checkmate"]

1. d4 {[%clk 0:02:59.8]} 1... Nf6 {[%clk 0:02:59]} 2. c4 {[%clk 0:03:00.1]} 2...
g6 {[%clk 0:02:58.8]} 3. g3 {[%clk 0:03:00.8]} 3... c6 {[%clk 0:02:56.3]} 4. Nf3
{[%clk 0:03:00.4]} 4... d5 {[%clk 0:02:55.6]} 5. cxd5 {[%clk 0:03:00.4]} 5...
cxd5 {[%clk 0:02:56.5]} 6. Nc3 {[%clk 0:02:58.4]} 6... Bg7 {[%clk 0:02:56.9]} 7.
Qb3 {[%clk 0:02:58.4]} 7... O-O {[%clk 0:02:56.9]} 8. Bg5 {[%clk 0:02:58.6]}
8... Ne4 {[%clk 0:02:53]} 9. h4 {[%clk 0:02:49.6]} 9... h6 {[%clk 0:02:49.8]}
10. Bf4 {[%clk 0:02:41.9]} 10... Nxc3 {[%clk 0:02:42.3]} 11. bxc3 {[%clk
0:02:36.5]} 11... Nc6 {[%clk 0:02:42.6]} 12. Bg2 {[%clk 0:02:32.7]} 12... Na5
{[%clk 0:02:32.4]} 13. Qb4 {[%clk 0:02:11.1]} 13... Bf5 {[%clk 0:02:20.1]} 14.
Ne5 {[%clk 0:02:02.8]} 14... Rc8 {[%clk 0:02:09.5]} 15. O-O {[%clk 0:01:56.7]}
15... b6 {[%clk 0:01:56.6]} 16. Rfc1 {[%clk 0:01:31.4]} 16... Nc4 {[%clk
0:01:52.2]} 17. Nd3 {[%clk 0:01:00.1]} 17... Qd7 {[%clk 0:01:30.9]} 18. a4
{[%clk 0:00:56.1]} 18... Bh3 {[%clk 0:01:19.6]} 19. Bf3 {[%clk 0:00:51.1]} 19...
Bg4 {[%clk 0:01:16.2]} 20. Qb5 {[%clk 0:00:44.9]} 20... Qxb5 {[%clk 0:00:58]}
21. axb5 {[%clk 0:00:45.8]} 21... Bxf3 {[%clk 0:00:58.6]} 22. exf3 {[%clk
0:00:46.2]} 22... Na5 {[%clk 0:00:59.4]} 23. Nb4 {[%clk 0:00:44.1]} 23... Nb3
{[%clk 0:00:58.8]} 24. Nxd5 {[%clk 0:00:42.2]} 24... Rfe8 {[%clk 0:00:38.3]} 25.
Rxa7 {[%clk 0:00:39.3]} 25... Nxc1 {[%clk 0:00:37.9]} 26. Bxc1 {[%clk
0:00:34.3]} 26... Bf6 {[%clk 0:00:30.2]} 27. Bxh6 {[%clk 0:00:30.2]} 27... Red8
{[%clk 0:00:28.4]} 28. Nxf6+ {[%clk 0:00:23.1]} 28... exf6 {[%clk 0:00:29.3]}
29. Bd2 {[%clk 0:00:15.3]} 29... Rd5 {[%clk 0:00:28.8]} 30. Rb7 {[%clk
0:00:07.8]} 30... Rxb5 {[%clk 0:00:28.2]} 31. Kg2 {[%clk 0:00:08.4]} 31... Rb2
{[%clk 0:00:27.6]} 32. Be3 {[%clk 0:00:07.9]} 32... Rxc3 {[%clk 0:00:26.6]} 33.
Kh3 {[%clk 0:00:07.5]} 33... Kg7 {[%clk 0:00:26.3]} 34. g4 {[%clk 0:00:07.4]}
34... b5 {[%clk 0:00:23.6]} 35. g5 {[%clk 0:00:06.5]} 35... Rd3 {[%clk
0:00:20.6]} 36. gxf6+ {[%clk 0:00:06.7]} 36... Kxf6 {[%clk 0:00:21.4]} 37. Rb6+
{[%clk 0:00:07.1]} 37... Kg7 {[%clk 0:00:21.8]} 38. Kg3 {[%clk 0:00:08]} 38...
b4 {[%clk 0:00:21]} 39. Bf4 {[%clk 0:00:08.7]} 39... b3 {[%clk 0:00:13.4]} 40.
Be5+ {[%clk 0:00:08.9]} 40... Kf8 {[%clk 0:00:14]} 41. Bd6+ {[%clk 0:00:07]}
41... Ke8 {[%clk 0:00:13.5]} 42. Rb7 {[%clk 0:00:07.6]} 42... Rb1 {[%clk
0:00:12.2]} 43. Re7+ {[%clk 0:00:07.2]} 43... Kd8 {[%clk 0:00:12.6]} 44. Rxf7
{[%clk 0:00:07.4]} 44... b2 {[%clk 0:00:12.9]} 45. Rb7 {[%clk 0:00:06]} 45...
Rxd4 {[%clk 0:00:12.4]} 46. Be5 {[%clk 0:00:06.4]} 46... Rd2 {[%clk 0:00:11.8]}
47. Kg4 {[%clk 0:00:06]} 47... Rc2 {[%clk 0:00:09.9]} 48. Kg5 {[%clk 0:00:05.5]}
48... Rc5 {[%clk 0:00:10.2]} 49. Kf6 {[%clk 0:00:05.7]} 49... Rxe5 {[%clk
0:00:10.3]} 50. Kxe5 {[%clk 0:00:06]} 50... Re1+ {[%clk 0:00:11]} 51. Kf6 {[%clk
0:00:05.8]} 51... b1=Q {[%clk 0:00:11.9]} 52. Rxb1 {[%clk 0:00:05.7]} 52... Rxb1
{[%clk 0:00:12.4]} 53. Kxg6 {[%clk 0:00:06.6]} 53... Rf1 {[%clk 0:00:11.5]} 54.
f4 {[%clk 0:00:06]} 54... Rxf2 {[%clk 0:00:11.7]} 55. f5 {[%clk 0:00:05.7]}
55... Ke7 {[%clk 0:00:11.5]} 56. h5 {[%clk 0:00:05.4]} 56... Rg2+ {[%clk
0:00:11.9]} 57. Kh7 {[%clk 0:00:04.8]} 57... Kf6 {[%clk 0:00:12.2]} 58. h6
{[%clk 0:00:05.4]} 58... Kxf5 {[%clk 0:00:11.5]} 59. Kh8 {[%clk 0:00:06.3]}
59... Kg6 {[%clk 0:00:08.1]} 60. h7 {[%clk 0:00:07.2]} 60... Ra2 {[%clk
0:00:07.5]} 61. Kg8 {[%clk 0:00:08.1]} 61... Ra8# {[%clk 0:00:07.8]} 0-1